Workbook

Sheet TITLE(1)
R1: D09-PM-FY2025(B)
R5: PID No. | Y5: FEDERAL PROJECT No.
R6: 109872 | Y6: 100% STATE
R8: STATE JOB No. | Y8: CONSTRUCTION PROJECT No.
R9: 496048
S11: PROJECT DESCRIPTION XXXXXXXXXXXXXXXX
S12: D09 DISTRICT PAVEMENT LONG LINE MARKINGS (B)
S14: 2023 SPECIFICATIONS THE STANDARD SPECIFICATIONS OF THE STATE OF OHIO, DEPARTMENT OF TRANSPORTATION, INCLUDING CHANGES AND SUPPLEMENTAL SPECIFICATIONS LISTED IN THE PROPOSAL SHALL GOVERN THIS IMPROVEMENT.
B19: LATITUDE: 39° 19' 28" N | J19: LONGITUDE: 82° 57' 47" W
B21: EARTH DISTURBED AREA: | P21: N/A*
B22: PROJECT EARTH DISTURBED AREA: | P22: N/A*
B23: EST. CONTRACTOR EARTH DISTURBED AREA: | P23: N/A*
B24: NOTICE OF INTENT EARTH DISTURBED AREA: | P24: N/A*
B25: RAILROAD INVOLVEMENT: | P25: NONE | S25: I HEREBY APPROVE THESE PLANS AND DECLARE THAT THE MAKING OF THIS IMPROVEMENT WILL NOT REQUIRE THE CLOSING OF THE HIGHWAY TO TRAFFIC AND THAT PROVISIONS FOR THE MAINTENANCE AND SAFETY OF TRAFFIC WILL BE AS SET FORTH IN THESE PLANS AND ESTIMATES.
B26: *TYPE OF PROJECT: | L26: MAINTENANCE
B28: DESIGN DESIGNATION: | J28: DISTRICT WIDE
B29: DESIGN EXCEPTION: | J29: NONE
B42: PLANS PREPARED BY: ODOT, DISTRICT 9 - P&E CHILLICOTHE, OH
K44: STANDARD CONSTRUCTION DRAWINGS | AC44: SUPPLEMENTAL SPECIFICATIONS
B46: ENGINEERS SEAL: | K46: MT-95.30 | N46: 2019-07-19 | Q46: MT-98.22 | T46: 2020-01-17 | W46: TC-41.20 | Z46: 2013-10-18 | AC46: 800 | AF46: 2024-07-19
K47: MT-95.31 | N47: 2019-07-19 | Q47: MT-98.28 | T47: 2020-01-17 | W47: TC-42.20 | Z47: 2013-10-18 | AC47: 832 | AF47: 2024-07-19
K48: MT-95.32 | N48: 2019-04-19 | Q48: MT-98.29 | T48: 2021-07-16 | W48: TC-52.10 | Z48: 2013-10-18
K49: MT-95.60 | N49: 2019-04-19 | Q49: MT-99.20 | T49: 2019-04-19 | W49: TC-52.20 | Z49: 2021-01-15
K50: MT-95.61 | N50: 2019-04-19 | Q50: MT-105.10 | T50: 2020-01-17
K51: MT-97.10 | N51: 2019-04-19 | W51: TC-71.10 | Z51: 2022-07-15 | AC51: SPECIAL PROVISIONS
W52: TC-72.20 | Z52: 2018-07-20
K54: MT-98.10 | N54: 2020-01-17
K55: MT-98.11 | N55: 2020-01-17
K56: MT-98.20 | N56: 2019-04-19

Sheet GEN NOTES (2)
A1: GENERAL NOTES
A2: UTILITIES
A4: THERE ARE NO UNDERGROUND UTILITIES SHOW ON THIS PLAN. THE NATURE OF THE WORK REQUIRED BY THIS PROJECT WILL NOT AFFECT ANY KNOWN UNDERGROUND UTILITIES THAT EXIST UNDER OR ADJACENT TO THE WORK AREA.
A10: LAYOUT AND PREMARKING
A12: ALL NEW MARKINGS SHALL BE PLACED OVER EXISTING MARKINGS. ANY CHANGES TO THE EXISTING MARKINGS SHALL BE FURNISHED TO THE CONTRACTOR AT THE PRE-CONSTUCTION CONFERENCE. WHERE THE MARKINGS WHICH WERE TO BE RETRACED ARE NO LONGER VISIBLE, THE CONTRACTOR SHALL PREMARK ALL MARKINGS FROM SCHEMATIC FORMS FURNISHED BY THE ENGINEER UNLESS THE ENGINEER DIRECTS OTHERWISE. NO WORK SHALL BE DONE WITHIN CITY CORPORATION LIMITS ON TWO LANE ROUTES UNLESS DIRECTED BY THE ENGINEER.
A26: PROJECT START DATE
A28: NO WORK IS TO BEGIN ON THIS PROJECT UNTIL SEPT. 1, 2025.
A32: CENTER LINE EQUIVALENT SOLID LINE
A34: THE EQUIVALENT SOLID LINE QUANTITIES (TAKEN FROM THE DISTRICT NO-PASSING ZONE LOG) ARE FOR THE CONVENIENCE OF THE CONTRACTOR TO ESTIMATE THE APPROXIMATE QUANTITY OF CENTER LINE PAVEMENT MATERIAL NEEDED. THESE EQUIVALENT SOLID LINE QUANTITIES ARE NOT TO BE UTILIZED FOR PAY QUANTITIES OR AS A BASIS OF PAYMENT FOR DELIVERED MATERIALS.
A42: INTERCHANGE ID NUMBERS & RAMP DESIGNATIONS
A44: SEE ODOT INTERNET SITE, DESIGN REFERENCE RESOURCE CENTER
A45: (DRRC), STRAIGHT LINE DIAGRAMS, FOR COUNTY ROUTE
A46: INTERCHANGE DRAWINGS WITH ID NUMBERS AND RAMP LETTER
A47: DESIGNATIONS.

Sheet MOT NOTES(3)
A1: MAINTENANCE OF TRAFFIC NOTES
A3: ITEM 614 MAINTAINING TRAFFIC
A5: A MINIMUM OF ONE LANE OF TRAFFIC IN EACH DIRECTION SHALL BE MAINTAINED AT ALL TIMES BY THE USE OF EXISTING PAVEMENT. LENGTH AND DURATION OF LANE CLOSURES AND RESTRICTIONS SHALL BE AT THE APPROVAL OF THE ENGINEER. IT IS THE INTENT TO MINIMIZE THE IMPACT TO THE TRAVELING PUBLIC. LANE CLOSURES OR RESTRICTIONS OVER SEGMENTS OF THE PROJECT IN WHICH NO WORK IS ANTICIPATED WITHIN A REASONABLE TIME FRAME, AS DETERMINED BY THE ENGINEER, SHALL NOT BE PERMITTED. THE LEVEL OF UTILIZAITON OF MAINTENANCE OF TRAFFIC DEVICES SHALL BE COMMENSURATE WITH THE WORK IN PROGRESS.
A18: MAINTAIN TRAFFIC AS FOLLOWS:
A20: 1. ON TWO-LANE TWO-WAY ROADWAY MAINTAIN TRAFFIC IN ACCORDANCE WITH STANDARD DRAWING MT-99.20. FLAGGERS IN ACCORDANCE WITH STANDARD DRAWING MT-97.10 MAY BE USED AS REQUIRED TO PROGRESS THE WORK. 2. ON MULTI-LANE ROADWAY MAINTAIN TRAFFIC IN ACCORDANCE WITH STANDARD DRAWING MT-99.20 (USING FLASHING ARROW PANEL IN ACCORDANCE WITH STANDARD DRAWING MT-95.30) AND LANE CLOSURES IN ACCORDANCE WITH STANDARD DRAWINGS MT-95.30, MT-95.31, MT-98.10, MT-98.11, MT-98.20, MT-98.22, MT-98.28, OR MT-98.29 AS APPLICABLE MAY BE USED AS REQUIRED TO PROGRESS THE WORK.
A35: BEFORE THE WORK BEGINS, THE CONTRACTOR SHALL SUBMIT TO THE ENGINEER THE NAMES AND TELEPHONE NUMBERS OF A PERSON OR PERSONS WHO CAN BE CONTACTED TWENTY-FOUR (24) HOURS PER DAY BY THE OHIO DEPARTMENT OF TRANSPORTATION AND ALL INTERESTED POLICE AGENCIES. THIS PERSON OR PERSONS SHALL BE RESPONSIBLE FOR PLACING OR REPLACING NECESSARY TRAFFIC CONTROL DEVICES IN ACCORDANCE WITH THE OHIO MANUAL OF UNIFORM TRAFFIC CONTROL DEVICES.
A44: THE CONTRACTOR WILL ADVISE THE DISTRICT PUBLIC INFORMATION OFFICER AT (740) 774-8834, OR FAX (740) 773-2710 FOURTEEN (14) DAYS PRIOR TO THE START OF CONSTRUCTION ACTIVITIES. THE PROJECT ENGINEER WILL PROVIDE ASSISTANCE/CLARIFICATION FOR ANY QUESTIONS.
A51: THE CONTRACTOR SHALL ARRANGE FOR ALL MAINTENANCE OF TRAFFIC OPPERATIONS SUCH THAT THERE WILL BE NO OBSTRUCTIONS TO THE CONTINUOUS FLOW OF TRAFFIC. ALL INTERSECTIONS AND DRIVEWAYS SHALL BE OPEN TO TRAFFIC AT ALL TIMES UNLESS OTHERWISE SHOWN IN THE PLANS.
A57: ALL WORK AND TRAFFIC CONTROL DEVICES SHALL BE IN ACCORDANCE WITH 614 AND OTHER APPLICABLE PORTIONS OF THE SPECIFICATIONS, AS WELL AS THE OHIO MANUAL OF UNIFORM TRAFFIC CONTROL DEVICES. PAYMENT FOR ALL LABOR, EQUIPMENT AND MATERIALS SHALL BE INCLUDED IN THE LUMP SUM PRICE FOR 614, MAINTAINING TRAFFIC.

Sheet GEN SUM(4)
A1: GENERAL SUMMARY
A2: SHEET NUMBER | J2: PART. | K2: ITEM | L2: ITEM EXT. | M2: GRAND TOTAL | N2: UNIT | O2: DESCRIPTION | P2: SEE SHEET NO.
A3: 5 | B3: 6 | C3: 7 | D3: 9 | E3: 11 | F3: 12 | G3: 14 | H3: 16 | J3: 01/NFP/21
O5: TRAFFIC CONTROL
A7: ='ADA(5)'!G44 -> 237.67 | B7: ='BRO(6)'!G43 -> 287.86 | C7: ='HIG(7)'!G44 -> 221.2 | D7: ='JAC(9)'!G42 -> 228.3 | E7: ='LAW(11)'!G45 -> 200.47 | F7: ='PIK(12)'!G42 -> 147.93 | G7: ='ROS(14)'!G40 -> 237.06 | H7: ='SCI(16)'!G42 -> 296.87 | J7: =SUM(A7:I7) -> 1857.36 | K7: 642 | L7: 00104 | M7: =J7 -> 1857.36 | N7: MILE | O7: EDGE LINE, 6", TYPE 1
A8: ='ADA(5)'!I44 -> 22.49 | B8: ='BRO(6)'!I43 -> 23.23 | C8: ='HIG(7)'!I44 -> 0.7 | D8: ='JAC(9)'!I42 -> 44.78 | E8: ='LAW(11)'!I45 -> 22.87 | F8: ='PIK(12)'!I42 -> 10.02 | G8: ='ROS(14)'!I40 -> 71.01 | H8: ='SCI(16)'!I42 -> 18.87 | J8: =SUM(A8:I8) -> 213.97 | K8: 642 | L8: 00204 | M8: =J8 -> 213.97 | N8: MILE | O8: LANE LINE, 6", TYPE 1
A9: ='ADA(5)'!J44 -> 97.48 | B9: ='BRO(6)'!J43 -> 137.09 | C9: ='HIG(7)'!J44 -> 111.97 | D9: ='JAC(9)'!J42 -> 65.27 | E9: ='LAW(11)'!J45 -> 74.13 | F9: ='PIK(12)'!J42 -> 70.26 | G9: ='ROS(14)'!J40 -> 62.34 | H9: ='SCI(16)'!J42 -> 134.7 | J9: =SUM(A9:I9) -> 753.24 | K9: 642 | L9: 00300 | M9: =J9 -> 753.24 | N9: MILE | O9: CENTER LINE, TYPE 1
A10: ='ADA(5)'!L44 -> 12839 | B10: ='BRO(6)'!L43 -> 1103 | C10: ='HIG(7)'!L44 -> 0 | D10: ='JAC(9)'!L42 -> 5240.8 | E10: ='LAW(11)'!L45 -> 6271 | F10: ='PIK(12)'!L42 -> 0 | G10: ='ROS(14)'!L40 -> 10958 | H10: ='SCI(16)'!L42 -> 250 | J10: =SUM(A10:I10) -> 36661.8 | K10: 642 | L10: 01510 | M10: =J10 -> 36661.8 | N10: FT | O10: DOTTED LINE, 6", TYPE 1
A11: ='ADA(5)'!N44 -> 0 | B11: ='BRO(6)'!N43 -> 0 | C11: ='HIG(7)'!N44 -> 0 | D11: ='JAC(9)'!N42 -> 5283.24 | E11: ='LAW(11)'!N45 -> 1500 | F11: ='PIK(12)'!N42 -> 0 | G11: ='ROS(14)'!N40 -> 0 | H11: ='SCI(16)'!N42 -> 0 | J11: =SUM(A11:I11) -> 6783.24 | K11: 642 | L11: 01560 | M11: 6783.24 | N11: FT | O11: DOTTED LINE, 12", TYPE 1
J13: 1 | K13: 642 | L13: 20000 | M13: LUMP | O13: TWO-WAY RADIO EQUIPMENT
O15: INCIDENTALS
J17: 1 | K17: 614 | L17: 11000 | M17: LUMP | O17: MAINTAINING TRAFFIC
J18: 1 | K18: 624 | L18: 10000 | M18: LUMP | O18: MOBILIZATION
M40: =SUM(A40:I40) -> 0
M41: 0
M42: 0
M43: 0
M44: 0
M45: 0
M46: 0
M47: 0
M48: 0
M49: 0

Sheet ADA(5)
A1: PAVEMENT MARKING SUBSUMMARY - ADAMS COUNTY
A2: COUNTY | B2: RTE TYPE | C2: ROUTE | D2: SLM | F2: LOCATION DESCRIPTION [CL = COUNTY LINE] [* CORP = CORPORATION LIMIT] [PB*O=PAVEMENT BREAK * OF] *=(EAST/WEST/NORTH/SOUTH) | G2: 642
G3: EDGE LINE, 6", TYPE 1 | I3: LANE LINE, 6", TYPE 1 | J3: CENTER LINE, TYPE 1 | L3: DOTTED LINE, 6", TYPE 1 | N3: DOTTED LINE, 12", TYPE 1 | P3: REMARKS [EL = EDGE LINE]
G7: WHITE | H7: YELLOW | K7: EQUIV. SOLID MILE | L7: WHITE | M7: YELLOW | N7: WHITE
D8: FROM | E8: TO | G8: MILE | H8: MILE | I8: MILE | J8: MILE | L8: FT | M8: FT | N8: FT
A10: ADA | B10: SR | C10: 32 | D10: 0 | E10: 6.73 | F10: BRO CL TO PBEO CR 14A | G10: =(E10-D10)*2 -> 13.46 | H10: =(E10-D10)*2 -> 13.46 | I10: =(E10-D10)*2 -> 13.46 | L10: 2894 | M10: 9945
A11: ADA | B11: SR | C11: 32 | D11: 19.85 | E11: 24.848 | F11: PBWO SR 73 TO PIK CL | G11: =(E11-D11)*2-0.97 -> 9.026 | H11: =(E11-D11)*2-0.97 -> 9.026 | I11: =(E11-D11)*2-0.97 -> 9.026 | P11: SKIP SR 32 WB (23.67-24.64)
A12: ADA | B12: SR | C12: 41 | D12: 0 | E12: 7.46 | F12: BRO CL TO PBSO SR 136 | G12: =(E12-D12)*2 -> 14.92 | J12: =E12-D12 -> 7.46 | K12: 11.72
A13: ADA | B13: SR | C13: 41 | D13: 25.509 | E13: 34.46 | F13: PEEBLES S. CORP TO HIG CL | G13: =(E13-D13-0.559)*2 -> 16.784 | J13: 8.951 | K13: 15.34 | P13: NO EL (26.017-26.576)
A14: ADA | B14: US | C14: 52 | D14: 0 | E14: 8.27 | F14: BRO CL TO MANCHESTER E. CORP | G14: =(E14-D14-0.22)*2 -> 16.1 | J14: 8.27 | K14: 11.539 | P14: NO EL (7.453-7.673)
A16: ADA | B16: US | C16: 52 | D16: 16.14 | E16: 29.264 | F16: PBWO TR 29 TO PIK CL | G16: 26.248 | J16: 13.124 | K16: 13.81
A17: ADA | B17: SR | C17: 73 | D17: 0 | E17: 7.643 | F17: HIG CL TO SR 41 | G17: 15.286 | J17: 7.643 | K17: 13.526
A18: ADA | B18: SR | C18: 73 | D18: 7.903 | E18: 15.58 | F18: SR 41 TO SCI CL | G18: 15.354 | J18: 7.677 | K18: 15.354
A19: ADA | B19: SR | C19: 125 | D19: 4.9 | E19: 8.44 | F19: SR 136 TO SR 41 | G19: 7.08 | J19: 3.54 | K19: 6.038
A20: ADA | B20: SR | C20: 125 | D20: 14.71 | E20: 26.07 | F20: PBEO OF SR 348 TO SCI CL | G20: 22.72 | J20: 11.36 | K20: 17.434
A22: ADA | B22: SR | C22: 136 | D22: 0 | E22: 4.339 | F22: US 52 TO SR 41 | G22: 8.678 | J22: 4.339 | K22: 6.381
A23: ADA | B23: SR | C23: 136 | D23: 5.867 | E23: 18.95 | F23: SR 41 TO PBSO SR 32 | G23: 26.166 | J23: 13.083 | K23: 20.134
A24: ADA | B24: SR | C24: 247 | D24: 17.12 | E24: 18.17 | F24: SR 32 TO SEAMAN N. CORP | G24: =((E24-D24)*2)-0.253-0.457 -> 1.39 | J24: 1.05 | K24: 1.871 | P24: NO EL (17.249-17.706 RT), (17.917-18.170 RT)
A25: ADA | B25: SR | C25: 781 | D25: 0 | E25: 10.987 | F25: SR 41 TO SR 348 | G25: 21.974 | J25: 10.987 | K25: 20.099
A43: SHEET TOTALS | G43: =SUM(G9:G42) -> 215.186 | H43: =SUM(H9:H42) -> 22.486 | I43: 22.486 | J43: 97.484 | K43: 153.246 | L43: 2894 | M43: 9945 | N43: 0
A44: TOTALS CARRIED TO GENERAL SUMMARY | G44: =ROUND(G43+H43,2) -> 237.67 | I44: =ROUND(I43,2) -> 22.49 | J44: =ROUND(J43,2) -> 97.48 | L44: =ROUNDUP(L43+M43,0) -> 12839 | N44: =N43 -> 0

Sheet BRO(6)
A1: PAVEMENT MARKING SUBSUMMARY - BROWN COUNTY
A2: COUNTY | B2: RTE TYPE | C2: ROUTE | D2: SLM | F2: LOCATION DESCRIPTION [CL = COUNTY LINE] [* CORP = CORPORATION LIMIT] [PB*O=PAVEMENT BREAK * OF] *=(EAST/WEST/NORTH/SOUTH) | G2: 642
G3: EDGE LINE, 6", TYPE 1 | I3: LANE LINE, 6", TYPE 1 | J3: CENTER LINE, TYPE 1 | L3: DOTTED LINE, 6", TYPE 1 | N3: DOTTED LINE, 12", TYPE 1 | P3: REMARKS [EL = EDGE LINE]
G7: WHITE | H7: YELLOW | K7: EQUIV. SOLID MILE | L7: WHITE | M7: YELLOW | N7: WHITE
D8: FROM | E8: TO | G8: MILE | H8: MILE | I8: MILE | J8: MILE | L8: FT | M8: FT | N8: FT
A10: BRO | B10: SR | C10: 32 | D10: 15.29 | E10: 19.83 | F10: PBEO TR 172 TO ADA CL | G10: =(E10-D10)*2 -> 9.08 | H10: =(E10-D10)*2 -> 9.08 | I10: =(E10-D10)*2 -> 9.08 | L10: 316 | M10: 787
A11: BRO | B11: US | C11: 50 | D11: 5.273 | E11: 8.374 | F11: E. FAYETTEVILE CORP TO HIG CL | G11: =(E11-D11)*2 -> 6.202 | J11: =E11-D11 -> 3.101 | K11: 2.168
A12: BRO | B12: US | C12: 52 | D12: 0 | E12: 19.944 | F12: CLE CL TO ELM ST. (ABERDEEN) | G12: =(E12-D12-0.453-1.359)*2 -> 36.264 | J12: =E12-D12 -> 19.944 | K12: 19.05 | P12: NO EL (4.488-4.941),(11.839-13.198)
A13: BRO | B13: US | C13: 52 | D13: 19.944 | E13: 20.86 | F13: ELM ST. TO US 62 | I13: =(E13-D13)*2 -> 1.832 | J13: =E13-D13 -> 0.916 | K13: 1.832
A14: BRO | B14: US | C14: 52 | D14: 20.86 | E14: 23.73 | F14: US 62 TO ADA CL | G14: =(E14-D14)*2 -> 5.74 | J14: =E14-D14 -> 2.87 | K14: 2.002
A16: BRO | B16: US | C16: 62 | D16: 8.381 | E16: 13.837 | F16: US 52 TO US 68 | G16: =(E16-D16)*2 -> 10.912 | H16: =(E16-D16)*2 -> 10.912 | I16: =(E16-D16)*2 -> 10.912
A17: BRO | B17: RA | C17: 8004 | D17: 0 | E17: 0.217 | F17: US 62 NB SLIPRAMP | G17: =(E17-D17) -> 0.217 | H17: =E17-D17 -> 0.217
A18: BRO | B18: US | C18: 62 | D18: 13.837 | E18: 30.45 | F18: US 68 TO HIG CL | G18: =(E18-D18-0.175)*2 -> 32.876 | J18: 16.613 | K18: 26.091 | P18: NO EL (18.288-18.463)
A19: BRO | B19: US | C19: 68 | D19: 11.673 | E19: 12.09 | F19: US 62 TO 4/2 LANE TRANSITION | G19: =(E19-D19)*2 -> 0.834 | H19: =(E19-D19)*2 -> 0.834 | I19: =(E19-D19)*2 -> 0.834
A20: BRO | B20: US | C20: 68 | D20: 12.09 | E20: 17.68 | F20: 4/2 LANE TRANS. TO PBNO SR 125 | G20: 11.18 | J20: 5.59 | K20: 3.898
A22: BRO | B22: US | C22: 68 | D22: 22.55 | E22: 45.88 | F22: PBNO TR 21 TO CLI CL | G22: =((E22-D22-0.151)*2)-0.071 -> 46.287 | J22: 23.33 | K22: 29.873 | P22: NO EL (29.906-29.977 LT), (29.977-30.128)
A23: BRO | B23: SR | C23: 125 | D23: 8.54 | E23: 8.77 | F23: PBWO SR 221 TO 4/3 LANE TRANS. | G23: =(E23-D23)*2 -> 0.46 | H23: =(E23-D23)*2 -> 0.46 | I23: =(E23-D23)*2 -> 0.46
A24: BRO | B24: SR | C24: 125 | D24: 8.77 | E24: 8.94 | F24: 4/3/2 LANE TRANSITION | H24: =0.105*2 -> 0.21 | I24: 0.113 | J24: 0.065 | K24: 0.13
A25: BRO | B25: SR | C25: 125 | D25: 8.94 | E25: 10.839 | F25: 3/2 LANE TRANS. TO SR 125 | G25: =(E25-D25-0.192)*2 -> 3.414 | J25: 1.899 | K25: 3.982 | P25: NO EL (8.940-9.132)
A26: BRO | B26: SR | C26: 125 | D26: 11.859 | E26: 22.93 | F26: US 68 TO ADA CL | G26: =((E26-D26-0.069)*2)-0.043 -> 21.961 | J26: 11.071 | K26: 19.54 | P26: NO EL (15.778-15.847), (15.847-15.890 RT)
A28: BRO | B28: SR | C28: 131 | D28: 0 | E28: 7.757 | F28: CLE CL TO HIG CL | G28: 15.514 | J28: 7.757 | K28: 9.426
A29: BRO | B29: SR | C29: 221 | D29: 0 | E29: 7.992 | F29: US 52 TO SR 125 | G29: =((E29-D29)*2)-0.047 -> 15.937 | J29: 7.992 | K29: 15.756 | P29: NO EL (7.945-7.992 LT)
A30: BRO | B30: SR | C30: 251 | D30: 0 | E30: 4.01 | F30: US 50 TO CLI CL | G30: 8.02 | J30: 4.01 | K30: 5.74
A31: BRO | B31: SR | C31: 286 | D31: 0 | E31: 8.306 | F31: CLE CL TO HIG CL | G31: 16.612 | J31: 8.306 | K31: 6.017
A32: BRO | B32: SR | C32: 763 | D32: 0 | E32: 12.7 | F32: SR 41 TO SR 125 | G32: =(0.209+0.04+0.155+0.285+0.08+0.145+0.02+0.125+0.034+0.114+0.06+0.06+0.028+0.035)*2 -> 2.78 | J32: 12.7 | K32: 25.336 | P32: EL ONLY AT SPOT LOCATIONS**
A34: BRO | B34: SR | C34: 774 | D34: 0 | E34: 10.93 | F34: CLE CL TO US 68 | G34: 21.86 | J34: 10.93 | K34: 13.044
A37: **SR 763 EDGE LINE LOCATIONS: (0.000-0.209)(0.569-0.609)(0.644-0.799)(0.839-1.124)(1.184-1.264) (1.399-1.544)(2.840-2.860)(4.115-4.240)(6.112-6.146)(8.163-8.277) (9.864-9.924) (11.439-11.489)(11.542-11.570)(11.850-11.885)
A42: SHEET TOTALS | G42: =SUM(G9:G41) -> 266.15 | H42: 21.713 | I42: 23.231 | J42: 137.094 | K42: 183.885 | L42: 316 | M42: 787 | N42: 0
A43: TOTALS CARRIED TO GENERAL SUMMARY | G43: =ROUND(G42+H42,2) -> 287.86 | I43: =ROUND(I42,2) -> 23.23 | J43: =ROUND(J42,2) -> 137.09 | L43: =ROUNDUP(L42+M42,0) -> 1103 | N43: =N42 -> 0

Sheet HIG(7)
A1: PAVEMENT MARKING SUBSUMMARY - HIGHLAND COUNTY
A2: COUNTY | B2: RTE TYPE | C2: ROUTE | D2: SLM | F2: LOCATION DESCRIPTION [CL = COUNTY LINE] [* CORP = CORPORATION LIMIT] [PB*O=PAVEMENT BREAK * OF] *=(EAST/WEST/NORTH/SOUTH) | G2: 642
G3: EDGE LINE, 6", TYPE 1 | I3: LANE LINE, 6", TYPE 1 | J3: CENTER LINE, TYPE 1 | L3: DOTTED LINE, 6", TYPE 1 | N3: DOTTED LINE, 12", TYPE 1 | P3: REMARKS [EL = EDGE LINE] [TWLT = TWO WAY LEFT TURN]
G7: WHITE | H7: YELLOW | K7: EQUIV. SOLID MILE | L7: WHITE | M7: YELLOW | N7: WHITE
D8: FROM | E8: TO | G8: MILE | H8: MILE | I8: MILE | J8: MILE | L8: FT | M8: FT | N8: FT
A10: HIG | B10: US | C10: 50 | D10: 18.27 | E10: 28.488 | F10: PBWO TR 383 TO ROS CL | G10: =(E10-D10)*2 -> 20.436 | J10: =E10-D10 -> 10.218 | K10: 14.092
A11: HIG | B11: US | C11: 62 | D11: 0 | E11: 10.37 | F11: BRO CL TO PBSO CR 97 | G11: =(E11-D11)*2 -> 20.74 | J11: =E11-D11 -> 10.37 | K11: 10.968
A12: HIG | B12: SR | C12: 28 | D12: 0 | E12: 7.27 | F12: CLI CL TO EAST ST (LEESBURG) | G12: =(E12-D12-0.613)*2 -> 13.314 | J12: =E12-D12 -> 7.27 | K12: 9.853 | P12: NO EL (6.488-7.101)
A13: HIG | B13: SR | C13: 28 | D13: 15.43 | E13: 16.92 | F13: GREENFIELD W. CORP TO ROS CL | G13: =(E13-D13-1.112)*2 -> 0.756 | J13: =E13-D13+0.187 -> 1.677 | K13: 3.311 | P13: NO EL (15.673-16.785), TWLT (16.618-16.805)
A14: HIG | B14: SR | C14: 32 | D14: 0 | E14: 0.35 | F14: BRO CL TO BRO CL | G14: =(E14-D14)*2 -> 0.7 | H14: =(E14-D14)*2 -> 0.7 | I14: =(E14-D14)*2 -> 0.7
A16: HIG | B16: SR | C16: 41 | D16: 1.13 | E16: 1.88 | F16: SINKING SPRING S CORP TO N CORP | G16: =(E16-D16)*2 -> 1.5 | J16: =E16-D16 -> 0.75 | K16: 1.36
A17: HIG | B17: SR | C17: 124 | D17: 0 | E17: 8.77 | F17: CLI CL TO HILLSBORO N. CORP | G17: =(E17-D17)*2 -> 17.54 | J17: =E17-D17 -> 8.77 | K17: 14.09
A18: HIG | B18: SR | C18: 124 | D18: 10.99 | E18: 25.845 | F18: HILLSBORO S. CORP TO SR 41 | G18: =(E18-D18)*2 -> 29.71 | J18: =E18-D18 -> 14.855 | K18: 24.584
A19: HIG | B19: SR | C19: 124 | D19: 26.855 | E19: 27.19 | F19: SR 41 TO PIK CL | G19: =(E19-D19)*2 -> 0.67 | J19: =E19-D19 -> 0.335 | K19: 0.233
A20: HIG | B20: SR | C20: 131 | D20: 0 | E20: 7.086 | F20: BRO CL TO SR 138 | G20: =(E20-D20)*2 -> 14.172 | J20: =E20-D20 -> 7.086 | K20: 7.713
A22: HIG | B22: SR | C22: 135 | D22: 0 | E22: 2.822 | F22: US 50 TO SR 134 | G22: =(E22-D22-0.16)*2 -> 5.324 | J22: =E22-D22 -> 2.822 | K22: 3.587 | P22: NO EL (2.505-2.665)
A23: HIG | B23: SR | C23: 136 | D23: 0 | E23: 7.196 | F23: ADA CL TO US 62 | G23: =(E23-D23)*2 -> 14.392 | J23: =E23-D23 -> 7.196 | K23: 12.686
A24: HIG | B24: SR | C24: 138 | D24: 7.03 | E24: 14.22 | F24: PBSO SR 131 - HILLSBORO W CORP | G24: =(E24-D24)*2 -> 14.38 | J24: =E24-D24 -> 7.19 | K24: 11.005
A25: HIG | B25: SR | C25: 138 | D25: 16.91 | E25: 32.48 | F25: HILLSBORO E CORP TO SR 753 | G25: =(E25-D25)*2 -> 31.14 | J25: =E25-D25 -> 15.57 | K25: 26.197
A26: HIG | B26: SR | C26: 286 | D26: 0 | E26: 1.36 | F26: BRO CL TO SR 134 | G26: =(E26-D26)*2 -> 2.72 | J26: =E26-D26 -> 1.36 | K26: 1.266
A28: HIG | B28: SR | C28: 506 | D28: 0 | E28: 4.337 | F28: SR 124 TO SR 753 | G28: =(E28-D28)*2 -> 8.674 | J28: =E28-D28 -> 4.337 | K28: 7.105
A29: HIG | B29: SR | C29: 753 | D29: 0 | E29: 7.095 | F29: SR 41 TO US 50 | G29: =(E29-D29)*2 -> 14.19 | J29: =E29-D29 -> 7.095 | K29: 13.177
A30: HIG | B30: SR | C30: 753 | D30: 8.027 | E30: 13.1 | F30: US 50 TO BRIDGE S. OF CR 25 | G30: =(E30-D30)*2 -> 10.146 | J30: =E30-D30 -> 5.073 | K30: 7.945
A43: SHEET TOTALS | G43: =SUM(G9:G42) -> 220.504 | H43: =SUM(H9:H42) -> 0.7 | I43: 0.7 | J43: 111.974 | K43: 169.172 | L43: 0 | M43: 0 | N43: 0
A44: TOTALS CARRIED TO GENERAL SUMMARY | G44: =ROUND(G43+H43,2) -> 221.2 | I44: =ROUND(I43,2) -> 0.7 | J44: =ROUND(J43,2) -> 111.97 | L44: =ROUNDUP(L43+M43,0) -> 0 | N44: =N43 -> 0

Sheet JAC(8)
A1: PAVEMENT MARKING SUBSUMMARY - JACKSON COUNTY
A2: COUNTY | B2: RTE TYPE | C2: ROUTE | D2: SLM | F2: LOCATION DESCRIPTION [CL = COUNTY LINE] [* CORP = CORPORATION LIMIT] [PB*O=PAVEMENT BREAK * OF] *=(EAST/WEST/NORTH/SOUTH) | G2: 642
G3: EDGE LINE, 6", TYPE 1 | I3: LANE LINE, 6", TYPE 1 | J3: CENTER LINE, TYPE 1 | L3: DOTTED LINE, 6", TYPE 1 | N3: DOTTED LINE, 12", TYPE 1 | P3: REMARKS [LL = LANE LINE]
G7: WHITE | H7: YELLOW | K7: EQUIV. SOLID MILE | L7: WHITE | M7: YELLOW | N7: WHITE
D8: FROM | E8: TO | G8: MILE | H8: MILE | I8: MILE | J8: MILE | L8: FT | M8: FT | N8: FT
A10: JAC | B10: US | C10: 35 | D10: 11 | E10: 18.92 | F10: PBWO SR 93 TO PBWO SR 327 | G10: =(E10-D10)*2 -> 15.84 | H10: =(E10-D10)*2 -> 15.84 | I10: =(E10-D10)*2 -> 15.84 | L10: 2316.25 | M10: 1566.35 | N10: 3486.24
A11: JAC | B11: RA | C11: 40007 | D11: 0 | E11: 0.14 | F11: (048800) 35/93 RAMP A | G11: =(E11-D11) -> 0.14 | H11: =(E11-D11) -> 0.14
A12: JAC | B12: RA | C12: 40004 | D12: 0 | E12: 0.21 | F12: (048800) 35/93 RAMP C | G12: =(E12-D12) -> 0.21 | H12: =(E12-D12) -> 0.21
A13: JAC | B13: RA | C13: 40005 | D13: 0 | E13: 0.25 | F13: (048800) 35/93 RAMP B | G13: 0.25 | H13: 0.25
A14: JAC | B14: RA | C14: 40006 | D14: 0 | E14: 0.18 | F14: (048800) 35/93 RAMP D | G14: 0.18 | H14: 0.18
A16: JAC | B16: RA | C16: 40012 | D16: 0 | E16: 0.29 | F16: (048900) 35/CR10 RAMP A | G16: =(E16-D16) -> 0.29 | H16: =(E16-D16) -> 0.29
A17: JAC | B17: RA | C17: 40008 | D17: 0 | E17: 0.11 | F17: (048900) 35/CR10 RAMP B | G17: 0.11 | H17: 0.11
A18: JAC | B18: RA | C18: 40009 | D18: 0 | E18: 0.35 | F18: (048900) 35/CR10 RAMP C | G18: 0.35 | H18: 0.35
A19: JAC | B19: RA | C19: 40010 | D19: 0 | E19: 0.15 | F19: (048900) 35/CR10 RAMP D | G19: 0.15 | H19: 0.15
A20: JAC | B20: RA | C20: 40011 | D20: 0 | E20: 0.01 | F20: (048900) 35/CR10 RAMP E | G20: 0.01 | H20: 0.01
A22: JAC | B22: SR | C22: 32 | D22: 10.01 | E22: 24.46 | F22: PBWO TR 261 TO VIN CL | G22: =(E22-D22)*2 -> 28.9 | H22: =(E22-D22)*2 -> 28.9 | I22: =(E22-D22)*2 -> 28.9 | L22: 1125.2 | M22: 233 | N22: 1797
A23: JAC | B23: RA | C23: 40029 | D23: 0 | E23: 0.15 | F23: (049200) 32/93 RAMP A | G23: =(E23-D23) -> 0.15 | H23: =(E23-D23) -> 0.15
A24: JAC | B24: RA | C24: 40031 | D24: 0 | E24: 0.12 | F24: (049200) 32/93 RAMP D | G24: =(E24-D24) -> 0.12 | H24: =(E24-D24) -> 0.12
A25: JAC | B25: RA | C25: 40028 | D25: 0 | E25: 0.15 | F25: (049200) 32/93 RAMP C | G25: 0.15 | H25: 0.15
A26: JAC | B26: RA | C26: 40030 | D26: 0 | E26: 0.14 | F26: (049200) 32/93 RAMP B | G26: 0.14 | H26: 0.14
A28: JAC | B28: RA | C28: 40019 | D28: 0 | E28: 0.32 | F28: (049000) 32/35 RAMP B | G28: 0.32 | H28: 0.32
A29: JAC | B29: RA | C29: 40013 | D29: 0 | E29: 0.37 | F29: (049000) 32/35 RAMP H | G29: 0.37 | H29: 0.37
A30: JAC | B30: RA | C30: 40014 | D30: 0 | E30: 0.07 | F30: (049000) 32/35 RAMP L | G30: 0.07 | H30: 0.07
A31: JAC | B31: RA | C31: 40020 | D31: 0 | E31: 0.05 | F31: (049000) 32/35 RAMP I | G31: 0.05 | H31: 0.05
A32: JAC | B32: RA | C32: 40018 | D32: 0 | E32: 0.05 | F32: (049000) 32/35 RAMP K | G32: 0.05 | H32: 0.05
A34: JAC | B34: RA | C34: 40017 | D34: 0 | E34: 0.25 | F34: (049000) 32/35 RAMP F | G34: 0.25 | H34: 0.25
A35: JAC | B35: RA | C35: 40015 | D35: 0 | E35: 0.37 | F35: (049000) 32/35 RAMP D | G35: 0.37 | H35: 0.37
A36: JAC | B36: RA | C36: 40016 | D36: 0 | E36: 0.06 | F36: (049000) 32/35 RAMP J | G36: 0.06 | H36: 0.06
A37: JAC | B37: SR | C37: 124 | D37: 16.792 | E37: 17.087 | F37: (049250) 32/124/327 RAMP C | G37: 0.295 | H37: 0.295 | I37: 0.039 | P37: LL (17.024-17.063)
A38: JAC | B38: RA | C38: 40033 | D38: 0 | E38: 0.263 | F38: (049250) 32/124/327 RAMP D | G38: 0.263 | H38: 0.263
A40: JAC | B40: RA | C40: 40034 | D40: 0 | E40: 0.238 | F40: (049250) 32/124/327 RAMP B | G40: 0.238 | H40: 0.238
A41: JAC | B41: RA | C41: 40032 | D41: 0 | E41: 0.221 | F41: (049250) 32/124/327 RAMP A | G41: 0.221 | H41: 0.221
A44: SHEET TOTALS | G44: =SUM(G9:G43) -> 49.547 | H44: 49.547 | I44: 44.779 | J44: 0 | K44: 0 | L44: 3441.45 | M44: 1799.35 | N44: 5283.24
A45: TOTALS CARRIED TO SHEET 9 | G45: =ROUND(G44+H44,2) -> 99.09 | I45: =ROUND(I44,2) -> 44.78 | J45: =ROUND(J44,2) -> 0 | L45: =ROUNDUP(L44+M44,0) -> 5241 | N45: =N44 -> 5283.24

Sheet JAC(9)
A1: PAVEMENT MARKING SUBSUMMARY - JACKSON COUNTY
A2: COUNTY | B2: RTE TYPE | C2: ROUTE | D2: SLM | F2: LOCATION DESCRIPTION [CL = COUNTY LINE] [* CORP = CORPORATION LIMIT] [PB*O=PAVEMENT BREAK * OF] *=(EAST/WEST/NORTH/SOUTH) | G2: 642
G3: EDGE LINE, 6", TYPE 1 | I3: LANE LINE, 6", TYPE 1 | J3: CENTER LINE, TYPE 1 | L3: DOTTED LINE, 6", TYPE 1 | N3: DOTTED LINE, 12", TYPE 1 | P3: REMARKS [EL = EDGE LINE] [CL = CENTERLINE] [TWLT = TWO WAY LEFT TURN]
G7: WHITE | H7: YELLOW | K7: EQUIV. SOLID MILE | L7: WHITE | M7: YELLOW | N7: WHITE
D8: FROM | E8: TO | G8: MILE | H8: MILE | I8: MILE | J8: MILE | L8: FT | M8: FT | N8: FT
A10: JAC | B10: SR | C10: 93 | D10: 4.7 | E10: 14.34 | F10: OAK HILL N CORP TO PBNO CR 11 | G10: =(E10-D10)*2 -> 19.28 | J10: =(E10-D10) -> 9.64 | K10: 15.283
A11: JAC | B11: SR | C11: 93 | D11: 17.46 | E11: 24.46 | F11: JACKSON N CORP TO WELLSTON W CORP | G11: =(E11-D11-0.109)*2 -> 13.782 | H11: =0.123*2 -> 0.246 | J11: =(E11-D11)+0.085+0.089-0.123 -> 7.051 | K11: 11.078 | P11: DIVIDED CL (18.080-18.165), (18.288-18.377) NO CL/MEDIAN EL (18.165-18.288) NO EL (21.239-21.348)
A12: JAC | B12: SR | C12: 124 | D12: 17.087 | E12: 23.97 | F12: SR 32 EB RAMP TO VIN CL | G12: =(E12-D12)*2 -> 13.766 | J12: =(E12-D12)+0.277 -> 7.16 | K12: 11.584 | P12: TWLT (17.087-17.364)
A13: JAC | B13: SR | C13: 139 | D13: 0 | E13: 11.35 | F13: SCI CL TO PBNO TR 745 | G13: =(E13-D13)*2 -> 22.7 | J13: =(E13-D13) -> 11.35 | K13: 21.027
A14: JAC | B14: SR | C14: 233 | D14: 0 | E14: 4.37 | F14: SR 93 TO GAL CL | G14: =(E14-D14-0.052)*2 -> 8.636 | J14: 4.37 | K14: 6.154 | P14: NO EL (0.000-0.052)
A16: JAC | B16: SR | C16: 327 | D16: 0 | E16: 6.747 | F16: US 35 TO SR 124 | G16: 13.494 | J16: 6.747 | K16: 9.697
A17: JAC | B17: SR | C17: 327 | D17: 7.202 | E17: 7.617 | F17: SR 124 TO WELLSTON S. CORP | G17: 0.83 | J17: =(E17-D17)+0.304 -> 0.719 | K17: 1.005 | P17: TWLT (7.313-7.617)
A18: JAC | B18: SR | C18: 327 | D18: 11.6 | E18: 21.24 | F18: WELLSTON N. CORP TO VIN CL | G18: 19.28 | J18: 9.64 | K18: 16.516
A19: JAC | B19: SR | C19: 776 | D19: 2.89 | E19: 11.487 | F19: PBNO CR 24 TO JACKSON W. CORP | G19: =(E19-D19)*2 -> 17.194 | J19: =(E19-D19) -> 8.597 | K19: 16.501
A40: TOTALS FROM SHEET 8 | G40: ='JAC(8)'!G44 -> 49.547 | H40: ='JAC(8)'!H44 -> 49.547 | I40: ='JAC(8)'!I44 -> 44.779 | J40: ='JAC(8)'!J44 -> 0 | L40: ='JAC(8)'!L44 -> 3441.45 | M40: ='JAC(8)'!M44 -> 1799.35 | N40: ='JAC(8)'!N44 -> 5283.24
A41: SHEET TOTALS | G41: =SUM(G9:G39) -> 128.962 | H41: 0.246 | I41: 0 | J41: 65.274 | K41: 108.845 | L41: 0 | M41: 0 | N41: 0
A42: TOTALS CARRIED TO GENERAL SUMMARY | G42: =ROUND(SUM(G40:H41),2) -> 228.3 | I42: =ROUND(SUM(I40:I41),2) -> 44.78 | J42: =ROUND(SUM(J40:J41),2) -> 65.27 | L42: =SUM(L40:M41) -> 5240.8 | N42: =SUM(N40:N41) -> 5283.24

Sheet LAW(10)
A1: PAVEMENT MARKING SUBSUMMARY - LAWRENCE COUNTY
A2: COUNTY | B2: RTE TYPE | C2: ROUTE | D2: SLM | F2: LOCATION DESCRIPTION [CL = COUNTY LINE] [* CORP = CORPORATION LIMIT] [PB*O=PAVEMENT BREAK * OF] *=(EAST/WEST/NORTH/SOUTH) | G2: 642
G3: EDGE LINE, 6", TYPE 1 | I3: LANE LINE, 6", TYPE 1 | J3: CENTER LINE, TYPE 1 | L3: DOTTED LINE, 6", TYPE 1 | N3: DOTTED LINE, 12", TYPE 1 | P3: REMARKS
G7: WHITE | H7: YELLOW | K7: EQUIV. SOLID MILE | L7: WHITE | M7: YELLOW | N7: WHITE
D8: FROM | E8: TO | G8: MILE | H8: MILE | I8: MILE | J8: MILE | L8: FT | M8: FT | N8: FT
A10: LAW | B10: US | C10: 52 | D10: 2.17 | E10: 5 | F10: PBWO TR 1117 TO PBEO TR 277 | G10: =(E10-D10)*2 -> 5.66 | H10: =(E10-D10)*2 -> 5.66 | I10: =(E10-D10)*2 -> 5.66 | L10: 1500 | M10: 2500 | N10: 1500
A11: LAW | B11: SR | C11: 650 | D11: 0 | E11: 0.19 | F11: (054100) 52/650 RAMP A | G11: =(E11-D11) -> 0.19 | H11: =(E11-D11) -> 0.19
A12: LAW | B12: RA | C12: 44019 | D12: 0 | E12: 0.08 | F12: (054100) 52/650 RAMP B | G12: =(E12-D12) -> 0.08 | H12: =(E12-D12) -> 0.08
A13: LAW | B13: RA | C13: 44020 | D13: 0 | E13: 0.12 | F13: (054100) 52/650 RAMP C | G13: 0.12 | H13: 0.12
A14: LAW | B14: RA | C14: 44018 | D14: 0 | E14: 0.1 | F14: (054100) 52/650 RAMP D | G14: 0.1 | H14: 0.1
A16: LAW | B16: US | C16: 52 | D16: 18 | E16: 22.038 | F16: PBEO CR 18 TO SR 7 | G16: =((E16-D16)*2)+0.121 -> 8.197 | H16: =((E16-D16)*2)+0.121 -> 8.197 | I16: =(E16-D16)*2 -> 8.076 | L16: 1186 | M16: 920 | P16: MERGE LANE (20.361-20.482)
A17: LAW | B17: RA | C17: 44011 | D17: 0 | E17: 0.47 | F17: (054700) 52/7 RAMP B | G17: =(E17-D17) -> 0.47 | H17: =(E17-D17) -> 0.47
A18: LAW | B18: US | C18: 52 | D18: 22.038 | E18: 22.442 | F18: (054700) 52/7 RAMP A | G18: =(E18-D18) -> 0.404 | H18: =(E18-D18) -> 0.404
A19: LAW | B19: RA | C19: 44010 | D19: 0 | E19: 0.11 | F19: (054700) 52/7 RAMP C | G19: 0.11 | H19: 0.11
A20: LAW | B20: RA | C20: 44012 | D20: 0 | E20: 0.26 | F20: (054700) 52/7 RAMP D | G20: 0.26 | H20: 0.26
A22: LAW | B22: US | C22: 52 | D22: 22.442 | E22: 22.545 | F22: INTERCHANGE TO OHIO RIVER BRDG | G22: =(E22-D22)*2 -> 0.206 | H22: =(E22-D22-0.02)*2 -> 0.166 | I22: 0.115 | J22: 0.04 | K22: 0.08
A23: LAW | B23: SR | C23: 7 | D23: 0 | E23: 2.44 | F23: US 52 TO DEAD END | G23: =(E23-D23)*2 -> 4.88 | H23: =(E23-D23)*2 -> 4.88 | I23: =(E23-D23)*2 -> 4.88
A24: LAW | B24: RA | C24: 44029 | D24: 0 | E24: 0.41 | F24: (054800) 7/CR1 RAMP E | G24: =(E24-D24) -> 0.41 | H24: =(E24-D24) -> 0.41
A25: LAW | B25: RA | C25: 44014 | D25: 0 | E25: 0.13 | F25: (054900) 7/527 RAMP A | G25: 0.13 | H25: 0.13
A26: LAW | B26: RA | C26: 44015 | D26: 0 | E26: 0.4 | F26: (054900) 7/527 RAMP C | G26: 0.4 | H26: 0.4
A28: LAW | B28: RA | C28: 44013 | D28: 0 | E28: 0.41 | F28: (054900) 7/527 RAMP B | G28: =(E28-D28) -> 0.41 | H28: =(E28-D28) -> 0.41
A29: LAW | B29: SR | C29: 93 | D29: 1.53 | E29: 3.141 | F29: IRONTON N CORP TO 4/2 TRANSITION | G29: =(E29-D29)*2 -> 3.222 | H29: =(E29-D29)*2 -> 3.222 | I29: =(E29-D29)*2 -> 3.222
A30: LAW | B30: SR | C30: 93 | D30: 3.141 | E30: 11.77 | F30: 4/2 LANE TRANS. TO PBSO SR 373 | G30: =(E30-D30)*2 -> 17.258 | J30: =(E30-D30) -> 8.629 | K30: 14.998
A31: LAW | B31: SR | C31: 93 | D31: 21.52 | E31: 28.2 | F31: PBNO TR 238 TO LAW CL | G31: =(E31-D31)*2 -> 13.36 | J31: =(E31-D31) -> 6.68 | K31: 8.715
A32: LAW | B32: SR | C32: 140 | D32: 0 | E32: 1.68 | F32: PIK CL TO JAC CL | G32: 3.36 | J32: 1.68 | K32: 3.155
A34: LAW | B34: SR | C34: 141 | D34: 0.97 | E34: 8.43 | F34: IRONTON N CORP TO PBSO SR 217 | G34: 14.92 | J34: 7.46 | K34: 14.55 | L34: 165 | P34: DOTTED LINE AT CR 7 (2.546)
A35: LAW | B35: SR | C35: 217 | D35: 0 | E35: 17.53 | F35: SR 141 TO SR 7 | G35: 35.06 | J35: 17.53 | K35: 34.189
A36: LAW | B36: SR | C36: 218 | D36: 0 | E36: 2.42 | F36: SR 217 TO GAL CL | G36: 4.84 | J36: 2.42 | K36: 4.83
A37: LAW | B37: SR | C37: 243 | D37: 0.42 | E37: 11.59 | F37: PBEO US 52 TO SR 378 | G37: 22.34 | J37: 11.17 | K37: 22.184
A44: SHEET TOTALS | G44: =SUM(G9:G43) -> 136.387 | H44: 25.209 | I44: 21.953 | J44: 55.609 | K44: 102.701 | L44: 2851 | M44: 3420 | N44: 1500
A45: TOTALS CARRIED TO SHEET 11 | G45: =ROUND(G44+H44,2) -> 161.6 | I45: =ROUND(I44,2) -> 21.95 | J45: =ROUND(J44,2) -> 55.61 | L45: =ROUNDUP(L44+M44,0) -> 6271 | N45: =N44 -> 1500

Sheet LAW(11)
A1: PAVEMENT MARKING SUBSUMMARY - LAWRENCE COUNTY
A2: COUNTY | B2: RTE TYPE | C2: ROUTE | D2: SLM | F2: LOCATION DESCRIPTION [CL = COUNTY LINE] [* CORP = CORPORATION LIMIT] [PB*O=PAVEMENT BREAK * OF] *=(EAST/WEST/NORTH/SOUTH) | G2: 642
G3: EDGE LINE, 6", TYPE 1 | I3: LANE LINE, 6", TYPE 1 | J3: CENTER LINE, TYPE 1 | L3: DOTTED LINE, 6", TYPE 1 | N3: DOTTED LINE, 12", TYPE 1 | P3: REMARKS [CL = CENTERLINE]
G7: WHITE | H7: YELLOW | K7: EQUIV. SOLID MILE | L7: WHITE | M7: YELLOW | N7: WHITE
D8: FROM | E8: TO | G8: MILE | H8: MILE | I8: MILE | J8: MILE | L8: FT | M8: FT | N8: FT
A10: LAW | B10: SR | C10: 373 | D10: 0 | E10: 3.354 | F10: SR 93 TO SR 93 | G10: =(E10-D10)*2 -> 6.708 | J10: =(E10-D10) -> 3.354 | K10: 6.67
A11: LAW | B11: SR | C11: 527 | D11: 0.081 | E11: 0.541 | F11: OHIO RIVER BRDG TO INTERCHANGE | G11: =(E11-D11)*2 -> 0.92 | H11: =(E11-D11)*2 -> 0.92 | I11: =(E11-D11)*2 -> 0.92
A12: LAW | B12: SR | C12: 650 | D12: 0.19 | E12: 9.344 | F12: US 52 EB RAMPS TO SR 522 | G12: =(E12-D12)*2 -> 18.308 | J12: =(E12-D12) -> 9.154 | K12: 17.83
A13: LAW | B13: SR | C13: 775 | D13: 18.5 | E13: 23.959 | F13: PBNO TR 75 TO GAL CL | G13: =(E13-D13)*2 -> 10.918 | J13: =(E13-D13) -> 5.459 | K13: 9.931
A14: LAW | B14: SR | C14: 790 | D14: 0 | E14: 0.55 | F14: SR 755 TO GAL CL | G14: =(E14-D14)*2 -> 1.1 | J14: =(E14-D14) -> 0.55 | K14: 1.1
A43: TOTALS FROM SHEET 10 | G43: ='LAW(10)'!G44 -> 136.387 | H43: ='LAW(10)'!H44 -> 25.209 | I43: ='LAW(10)'!I44 -> 21.953 | J43: ='LAW(10)'!J44 -> 55.609 | L43: ='LAW(10)'!L44 -> 2851 | M43: ='LAW(10)'!M44 -> 3420 | N43: ='LAW(10)'!N44 -> 1500
A44: SHEET TOTALS | G44: =SUM(G9:G42) -> 37.954 | H44: 0.92 | I44: 0.92 | J44: 18.517 | K44: 35.531 | L44: 0 | M44: 0 | N44: 0
A45: TOTALS CARRIED TO GENERAL SUMMARY | G45: =ROUND(SUM(G43:H44),2) -> 200.47 | I45: =ROUND(SUM(I43:I44),2) -> 22.87 | J45: =ROUND(SUM(J43:J44),2) -> 74.13 | L45: =SUM(L43:M44) -> 6271 | N45: =SUM(N43:N44) -> 1500

Sheet PIK(12)
A1: PAVEMENT MARKING SUBSUMMARY - PIKE COUNTY
A2: COUNTY | B2: RTE TYPE | C2: ROUTE | D2: SLM | F2: LOCATION DESCRIPTION [CL = COUNTY LINE] [* CORP = CORPORATION LIMIT] [PB*O=PAVEMENT BREAK * OF] *=(EAST/WEST/NORTH/SOUTH) | G2: 642
G3: EDGE LINE, 6", TYPE 1 | I3: LANE LINE, 6", TYPE 1 | J3: CENTER LINE, TYPE 1 | L3: DOTTED LINE, 6", TYPE 1 | N3: DOTTED LINE, 12", TYPE 1 | P3: REMARKS [EL = EDGE LINE] [CL = CENTERLINE] [TWLT = TWO WAY LEFT TURN]
G7: WHITE | H7: YELLOW | K7: EQUIV. SOLID MILE | L7: WHITE | M7: YELLOW | N7: WHITE
D8: FROM | E8: TO | G8: MILE | H8: MILE | I8: MILE | J8: MILE | L8: FT | M8: FT | N8: FT
A10: PIK | B10: US | C10: 23 | D10: 8.323 | E10: 13.335 | F10: SCIOTO RIVER BRDG TO PBSO TR413 | G10: =(E10-D10)*2-1.401-1.247 -> 7.376 | H10: 6.316 | I10: =(E10-D10)*2 -> 10.024 | J10: 3.256 | K10: 5.332 | P10: CENTER MARKS VARY BETWEEN SINGLE CL, DIVIDED CL, TWLT, & EL. NO WHITE EL (11.679-13.080 NB), (11.917-13.164 SB)
A11: PIK | B11: SR | C11: 41 | D11: 0 | E11: 5.183 | F11: HIG CL TO ROS CL | G11: =(E11-D11)*2 -> 10.366 | J11: =(E11-D11) -> 5.183 | K11: 8.643
A12: PIK | B12: SR | C12: 104 | D12: 12.04 | E12: 12.667 | F12: WAVERLY S. CORP TO US 23 | G12: =(E12-D12)*2 -> 1.254 | J12: =(E12-D12) -> 0.627 | K12: 1.254
A13: PIK | B13: SR | C13: 104A | D13: 0 | E13: 0.114 | F13: SLIPRAMP - US 23 SB TO SR 104 SB | G13: =E13-D13 -> 0.114 | H13: =E13-D13 -> 0.114
A14: PIK | B14: SR | C14: 124 | D14: 0 | E14: 17.004 | F14: HIG CL TO SR 32 | G14: =(E14-D14)*2 -> 34.008 | J14: =(E14-D14) -> 17.004 | K14: 31.057
A16: PIK | B16: SR | C16: 220 | D16: 13.42 | E16: 13.99 | F16: PBWO CR 78 TO SR 32 | G16: =(E16-D16)*2 -> 1.14 | J16: =(E16-D16) -> 0.57 | K16: 1.14
A17: PIK | B17: SR | C17: 335 | D17: 0 | E17: 26.089 | F17: SCI CL TO US 23 | G17: =(E17-D17)*2 -> 52.178 | J17: =(E17-D17) -> 26.089 | K17: 47.644
A18: PIK | B18: SR | C18: 551 | D18: 2.76 | E18: 2.817 | F18: PBWO SR 104 TO SR 104 | G18: 0.114 | J18: 0.057 | K18: 0.114
A19: PIK | B19: SR | C19: 552 | D19: 0 | E19: 1.748 | F19: SR 220 TO SR 104 | G19: 3.496 | J19: 1.748 | K19: 3.436
A20: PIK | B20: SR | C20: 772 | D20: 0 | E20: 9.299 | F20: SCI CL TO SR 32 | G20: 18.598 | J20: 9.299 | K20: 17.525 | P20: BREAKS 4 TIMES FOR SCI 772
A22: PIK | B22: SR | C22: 772 | D22: 13.587 | E22: 19 | F22: SR 124 TO PBSO CR 37 | G22: 10.826 | J22: 5.413 | K22: 9.624
A23: PIK | B23: SR | C23: 772A | D23: 0 | E23: 0.021 | F23: CONNECTING ROAD SR 124/SR 772 | G23: 0.042 | J23: 0.021 | K23: 0.042
A24: PIK | B24: SR | C24: 776 | D24: 0 | E24: 0.993 | F24: SCI CL TO JAC CL | G24: =(E24-D24)*2 -> 1.986 | J24: =(E24-D24) -> 0.993 | K24: 1.186
A41: SHEET TOTALS | G41: =SUM(G9:G40) -> 141.498 | H41: 6.43 | I41: 10.024 | J41: 70.26 | K41: 126.997 | L41: 0 | M41: 0 | N41: 0
A42: TOTALS CARRIED TO GENERAL SUMMARY | G42: =ROUND(G41+H41,2) -> 147.93 | I42: =ROUND(I41,2) -> 10.02 | J42: =ROUND(J41,2) -> 70.26 | L42: =ROUNDUP(L41+M41,0) -> 0 | N42: =N41 -> 0

Sheet ROS(13)
A1: PAVEMENT MARKING SUBSUMMARY - ROSS COUNTY
A2: COUNTY | B2: RTE TYPE | C2: ROUTE | D2: SLM | F2: LOCATION DESCRIPTION [CL = COUNTY LINE] [* CORP = CORPORATION LIMIT] [PB*O=PAVEMENT BREAK * OF] *=(EAST/WEST/NORTH/SOUTH) | G2: 642
G3: EDGE LINE, 6", TYPE 1 | I3: LANE LINE, 6", TYPE 1 | J3: CENTER LINE, TYPE 1 | L3: DOTTED LINE, 6", TYPE 1 | N3: DOTTED LINE, 12", TYPE 1 | P3: REMARKS [TWLT = TWO WAY LEFT TURN]
G7: WHITE | H7: YELLOW | K7: EQUIV. SOLID MILE | L7: WHITE | M7: YELLOW | N7: WHITE
D8: FROM | E8: TO | G8: MILE | H8: MILE | I8: MILE | J8: MILE | L8: FT | M8: FT | N8: FT
A10: ROS | B10: US | C10: 23 | D10: 0 | E10: 1.94 | F10: PIK CL TO PBNO TR 199 | G10: =(E10-D10)*2 -> 3.88 | I10: =(E10-D10)*2 -> 3.88 | J10: =(E10-D10)*2-0.061 -> 3.819 | K10: 4.82 | P10: ALL TWLT EXCEPT (0.669-0.730)
A11: ROS | B11: US | C11: 23 | D11: 4.64 | E11: 10.97 | F11: PBNO CR 60 TO PBSO SR 104 | G11: =(E11-D11)*2 -> 12.66 | H11: =(E11-D11)*2 -> 12.66 | I11: =(E11-D11)*2+0.32 -> 12.98 | L11: 1020
A12: ROS | B12: SR | C12: 104 | D12: 8.44 | E12: 8.64 | F12: (077700) 23/104 RAMP C | G12: =(E12-D12) -> 0.2 | H12: =(E12-D12) -> 0.2
A13: ROS | B13: RA | C13: 71026 | D13: 0 | E13: 0.14 | F13: (077700) 23/104 RAMP A | G13: =(E13-D13) -> 0.14 | H13: =(E13-D13) -> 0.14
A14: ROS | B14: RA | C14: 71027 | D14: 0 | E14: 0.31 | F14: (077700) 23/104 RAMP D | G14: 0.31 | H14: 0.31
A16: ROS | B16: RA | C16: 71028 | D16: 0 | E16: 0.22 | F16: (077700) 23/104 RAMP B | G16: 0.22 | H16: 0.22
A17: ROS | B17: RA | C17: 71031 | D17: 0 | E17: 0.17 | F17: (077800) 23/50 RAMP S | G17: 0.17 | H17: 0.17
A18: ROS | B18: RA | C18: 71034 | D18: 0 | E18: 0.19 | F18: (077800) 23/50 RAMP R | G18: 0.19 | H18: 0.19
A19: ROS | B19: RA | C19: 71033 | D19: 0 | E19: 0.2 | F19: (077800) 23/50 RAMP U | G19: 0.2 | H19: 0.2
A20: ROS | B20: RA | C20: 71032 | D20: 0 | E20: 0.17 | F20: (077800) 23/50 RAMP T | G20: 0.17 | H20: 0.17
A22: ROS | B22: US | C22: 35 | D22: 4.38 | E22: 20.56 | F22: PBWO SR 138 TO US 23 | G22: =(E22-D22)*2 -> 32.36 | H22: =(E22-D22)*2 -> 32.36 | I22: =(E22-D22)*2+0.48 -> 32.84 | L22: 7220
A23: ROS | B23: RA | C23: 71003 | D23: 0 | E23: 0.17 | F23: (078100) 35/138 RAMP A | G23: =(E23-D23) -> 0.17 | H23: =(E23-D23) -> 0.17
A24: ROS | B24: RA | C24: 71000 | D24: 0 | E24: 0.17 | F24: (078100) 35/138 RAMP D | G24: =(E24-D24) -> 0.17 | H24: =(E24-D24) -> 0.17
A25: ROS | B25: RA | C25: 71001 | D25: 0 | E25: 0.17 | F25: (078100) 35/138 RAMP B | G25: 0.17 | H25: 0.17
A26: ROS | B26: RA | C26: 71002 | D26: 0 | E26: 0.19 | F26: (078100) 35/138 RAMP C | G26: 0.19 | H26: 0.19
A28: ROS | B28: RA | C28: 71007 | D28: 0 | E28: 0.16 | F28: (078200) 35/CR87 RAMP E | G28: 0.16 | H28: 0.16
A29: ROS | B29: RA | C29: 71004 | D29: 0 | E29: 0.16 | F29: (078200) 35/CR87 RAMP H | G29: 0.16 | H29: 0.16
A30: ROS | B30: RA | C30: 71005 | D30: 0 | E30: 0.18 | F30: (078200) 35/CR87 RAMP F | G30: 0.18 | H30: 0.18
A31: ROS | B31: RA | C31: 71006 | D31: 0 | E31: 0.16 | F31: (078200) 35/CR87 RAMP G | G31: 0.16 | H31: 0.16
A32: ROS | B32: RA | C32: 71040 | D32: 0 | E32: 0.31 | F32: (078300) 35/CR550 RAMP L | G32: 0.31 | H32: 0.31
A34: ROS | B34: RA | C34: 71037 | D34: 0 | E34: 0.46 | F34: (078300) 35/CR550 RAMP I | G34: 0.46 | H34: 0.46
A35: ROS | B35: RA | C35: 71041 | D35: 0 | E35: 0.28 | F35: (078300) 35/CR550 RAMP K | G35: 0.28 | H35: 0.28
A36: ROS | B36: RA | C36: 71036 | D36: 0 | E36: 0.55 | F36: (078300) 35/CR550 RAMP J | G36: 0.55 | H36: 0.55
A37: ROS | B37: RA | C37: 71053 | D37: 0 | E37: 0.27 | F37: (078350) 35/CR550/CR127 RAMP B | G37: 0.45 | H37: 0.09 | J37: 0.18 | K37: 0.36
A38: ROS | B38: RA | C38: 71052 | D38: 0 | E38: 0.21 | F38: (078350) 35/CR550/CR127 RAMP A | G38: 0.21 | H38: 0.21
A40: ROS | B40: RA | C40: 71016 | D40: 0 | E40: 0.11 | F40: (078400) 35/104 RAMP A | G40: 0.11 | H40: 0.11
A41: ROS | B41: RA | C41: 71013 | D41: 0 | E41: 0.19 | F41: (078400) 35/104 RAMP D | G41: 0.19 | H41: 0.19
A44: SHEET TOTALS | G44: =SUM(G9:G43) -> 54.42 | H44: 50.18 | I44: 49.7 | J44: 3.999 | K44: 5.18 | L44: 8240 | M44: 0 | N44: 0
A45: TOTALS CARRIED TO SHEET 14 | G45: =ROUND(G44+H44,2) -> 104.6 | I45: =ROUND(I44,2) -> 49.7 | J45: =ROUND(J44,2) -> 4 | L45: =ROUNDUP(L44+M44,0) -> 8240 | N45: =N44 -> 0

Sheet ROS(14)
A1: PAVEMENT MARKING SUBSUMMARY - ROSS COUNTY
A2: COUNTY | B2: RTE TYPE | C2: ROUTE | D2: SLM | F2: LOCATION DESCRIPTION [CL = COUNTY LINE] [* CORP = CORPORATION LIMIT] [PB*O=PAVEMENT BREAK * OF] *=(EAST/WEST/NORTH/SOUTH) | G2: 642
G3: EDGE LINE, 6", TYPE 1 | I3: LANE LINE, 6", TYPE 1 | J3: CENTER LINE, TYPE 1 | L3: DOTTED LINE, 6", TYPE 1 | N3: DOTTED LINE, 12", TYPE 1 | P3: REMARKS [EL = EDGE LINE] [CL = CENTERLINE] [TWLT = TWO WAY LEFT TURN]
G7: WHITE | H7: YELLOW | K7: EQUIV. SOLID MILE | L7: WHITE | M7: YELLOW | N7: WHITE
D8: FROM | E8: TO | G8: MILE | H8: MILE | I8: MILE | J8: MILE | L8: FT | M8: FT | N8: FT
A10: ROS | B10: RA | C10: 71014 | D10: 0 | E10: 0.19 | F10: (078400) 35/104 RAMP B | G10: =(E10-D10) -> 0.19 | H10: =(E10-D10) -> 0.19
A11: ROS | B11: RA | C11: 71015 | D11: 0 | E11: 0.1 | F11: (078400) 35/104 RAMP C | G11: =(E11-D11) -> 0.1 | H11: =(E11-D11) -> 0.1
A12: ROS | B12: RA | C12: 71020 | D12: 0 | E12: 0.13 | F12: (078500) 35/159 RAMP A | G12: 0.13 | H12: 0.13
A13: ROS | B13: RA | C13: 71017 | D13: 0 | E13: 0.11 | F13: (078500) 35/159 RAMP C | G13: 0.11 | H13: 0.11
A14: ROS | B14: RA | C14: 71021 | D14: 0 | E14: 0.32 | F14: (078500) 35/159 RAMP A1 | G14: 0.32 | H14: 0.32
A16: ROS | B16: RA | C16: 71019 | D16: 0 | E16: 0.24 | F16: (078500) 35/159 RAMP D | G16: =(E16-D16) -> 0.24 | H16: =(E16-D16) -> 0.24
A17: ROS | B17: RA | C17: 71018 | D17: 0 | E17: 0.31 | F17: (078500) 35/159 RAMP B | G17: 0.31 | H17: 0.31
A18: ROS | B18: US | C18: 35 | D18: 22.65 | E18: 25.02 | F18: US 23 TO PBWO US 50 OVERPASS | G18: =(E18-D18)*2 -> 4.74 | H18: =(E18-D18)*2 -> 4.74 | I18: =(E18-D18)*2 -> 4.74 | L18: 2395
A19: ROS | B19: US | C19: 50 | D19: 11.83 | E19: 19.35 | F19: PBEO CR 9 TO PBWO CR 608 | G19: =(E19-D19)*2 -> 15.04 | J19: =(E19-D19) -> 7.52 | K19: 8.632
A20: ROS | B20: US | C20: 50 | D20: 32.11 | E20: 37.68 | F20: PBWO CR 221 TO VIN CL | G20: =(E20-D20)*2 -> 11.14 | J20: =(E20-D20) -> 5.57 | K20: 7.998
A22: ROS | B22: SR | C22: 104 | D22: 8.641 | E22: 11.23 | F22: CR 205 TO CHILLICOTHE S. CORP | G22: =(E22-D22)*2 -> 5.178 | H22: =(E22-D22-0.406-0.061-0.09)*2 -> 4.064 | I22: =(E22-D22)*2 -> 5.178 | J22: =(0.406+0.061+0.09)*2 -> 1.114 | K22: 2.228 | P22: DIVIDED CL (8.641-9.047) (10.056-10.117)(10.240-10.330)
A23: ROS | B23: SR | C23: 104 | D23: 14.4 | E23: 17.83 | F23: CHILLICOTHE N CORP - PBSO SR 207 | G23: =(E23-D23)*2 -> 6.86 | H23: =(0.28)*2 -> 0.56 | I23: =(E23-D23)*2 -> 6.86 | J23: =(E23-D23-0.28)*2 -> 6.3 | K23: 11.058 | P23: DIVIDED CL (14.400-16.522) TWLT (16.522-17.550)
A24: ROS | B24: SR | C24: 104 | D24: 18.007 | E24: 18.68 | F24: PBNO SR 207 TO PBNO CR 236 | G24: =(E24-D24)*2 -> 1.346 | H24: =(0.082+0.082)*2+0.13 -> 0.458 | I24: 0.355 | J24: =(E24-D24-0.082-0.082)*2-0.307 -> 0.711 | K24: 1.606 | L24: 118 | P24: CENTER MARKS VARY BETWEEN SINGLE CL, DIVIDED CL, & EL.
A25: ROS | B25: SR | C25: 138 | D25: 0.264 | E25: 10.87 | F25: SR 28 TO PBSO CR 29 | G25: =(E25-D25)*2 -> 21.212 | J25: =(E25-D25) -> 10.606 | K25: 14.636
A26: ROS | B26: SR | C26: 159 | D26: 2.544 | E26: 4.634 | F26: CHILLICOTHE N CORP - 4/2 TRANS. | G26: =(E26-D26)*2 -> 4.18 | H26: =(0.843)*2 -> 1.686 | I26: =(E26-D26)*2 -> 4.18 | J26: =(0.133+0.085+0.085+0.055+0.219)+(0.045+0.02+0.475+0.1+0.085)*2 -> 2.027 | K26: 4.054 | P26: CENTER MARKS VARY BETWEEN SINGLE CL, DIVIDED CL, & EL.
A28: ROS | B28: SR | C28: 159 | D28: 4.634 | E28: 10.945 | F28: 4/2 LANE TRANSITION TO PIC CL | G28: =(E28-D28-0.709)*2 -> 11.204 | H28: =(0.173)*2 -> 0.346 | J28: =(E28-D28-0.173) -> 6.138 | K28: 8.707 | L28: 205 | P28: YELLOW EL (6.052-6.156)(6.501-6.570) NO WHITE EL (10.236-10.945)
A29: ROS | B29: SR | C29: 180 | D29: 0 | E29: 7.66 | F29: SR 159 TO PBEO CR 233 | G29: =(E29-D29)*2 -> 15.32 | H29: =(0.048)*2 -> 0.096 | J29: =(E29-D29-0.048) -> 7.612 | K29: 12.211 | P29: YELLOW EL (0.000-0.048)
A30: ROS | B30: SR | C30: 207 | D30: 3.901 | E30: 14.42 | F30: SR 104 TO CLARKSBURG E. CORP | G30: =(E30-D30)*2 -> 21.038 | J30: =(E30-D30) -> 10.519 | K30: 14.733
A31: ROS | B31: SR | C31: 207 | D31: 14.785 | E31: 15.012 | F31: CLARKSBURG W. CORP TO PIC CL | G31: =(E31-D31)*2 -> 0.454 | J31: =(E31-D31) -> 0.227 | K31: 0.415
A38: TOTALS FROM SHEET 13 | G38: ='ROS(13)'!G44 -> 54.42 | H38: ='ROS(13)'!H44 -> 50.18 | I38: ='ROS(13)'!I44 -> 49.7 | J38: ='ROS(13)'!J44 -> 3.999 | L38: ='ROS(13)'!L44 -> 8240 | M38: ='ROS(13)'!M44 -> 0 | N38: ='ROS(13)'!N44 -> 0
A39: SHEET TOTALS | G39: =SUM(G9:G37) -> 119.112 | H39: 13.35 | I39: 21.313 | J39: 58.344 | K39: 86.278 | L39: 2718 | M39: 0 | N39: 0
A40: TOTALS CARRIED TO GENERAL SUMMARY | G40: =ROUND(SUM(G38:H39),2) -> 237.06 | I40: =ROUND(SUM(I38:I39),2) -> 71.01 | J40: =ROUND(SUM(J38:J39),2) -> 62.34 | L40: =SUM(L38:M39) -> 10958 | N40: =SUM(N38:N39) -> 0

Sheet SCI(15)
A1: PAVEMENT MARKING SUBSUMMARY - SCIOTO COUNTY
A2: COUNTY | B2: RTE TYPE | C2: ROUTE | D2: SLM | F2: LOCATION DESCRIPTION [CL = COUNTY LINE] [* CORP = CORPORATION LIMIT] [PB*O=PAVEMENT BREAK * OF] *=(EAST/WEST/NORTH/SOUTH) | G2: 642
G3: EDGE LINE, 6", TYPE 1 | I3: LANE LINE, 6", TYPE 1 | J3: CENTER LINE, TYPE 1 | L3: DOTTED LINE, 6", TYPE 1 | N3: DOTTED LINE, 12", TYPE 1 | P3: REMARKS [EL = EDGE LINE] [CL = CENTERLINE] [LL = LANE LINE] [TWLT = TWO WAY LEFT TURN]
G7: WHITE | H7: YELLOW | K7: EQUIV. SOLID MILE | L7: WHITE | M7: YELLOW | N7: WHITE
D8: FROM | E8: TO | G8: MILE | H8: MILE | I8: MILE | J8: MILE | L8: FT | M8: FT | N8: FT
A10: SCI | B10: US | C10: 23 | D10: 10.569 | E10: 11.478 | F10: PBSO TR 1204 TO PBNO SR 348 | G10: =(E10-D10)*2 -> 1.818 | I10: =(E10-D10)*2 -> 1.818 | J10: =(E10-D10)+0.05+0.081+0.049 -> 1.089 | K10: 2.178 | P10: DIVIDED CL (10.569-10.619) (11.278-11.359)(11.429-11.478)
A11: SCI | B11: US | C11: 52 | D11: 0 | E11: 15.81 | F11: ADA CL TO PBWO CR 49 | G11: =(E11-D11)*2 -> 31.62 | J11: =(E11-D11) -> 15.81 | K11: 23.662
A12: SCI | B12: US | C12: 52 | D12: 21.84 | E12: 23.83 | F12: NEW BOSTON W CORP TO E CORP INCLUDES US 52F (0.000-1.670) | G12: =(23.83-23.463)*2 -> 0.734 | H12: =(23.83-23.463-0.1)*2 -> 0.534 | I12: =(E12-D12)*2 -> 3.98 | J12: 0.1 | K12: 0.2 | P12: NO EL (21.840-23.463) CL (23.615-23.715)
A13: SCI | B13: US | C13: 52 | D13: 26.388 | E13: 31.24 | F13: PORTSMOUTH E CORP-PBEO SR 522 | G13: =(E13-D13)*2 -> 9.704 | H13: =(E13-D13)*2 -> 9.704 | I13: =(E13-D13)*2 -> 9.704
A14: SCI | B14: RA | C14: 73019 | D14: 0 | E14: 0.19 | F14: (080000) 52/CR550 RAMP H | G14: =(E14-D14) -> 0.19 | H14: =(E14-D14) -> 0.19
A16: SCI | B16: RA | C16: 73021 | D16: 0 | E16: 0.22 | F16: (080000) 52/CR550 RAMP P | G16: =(E16-D16) -> 0.22 | H16: =(E16-D16) -> 0.22
A17: SCI | B17: RA | C17: 73018 | D17: 0 | E17: 0.13 | F17: (080000) 52/CR550 RAMP M | G17: =(E17-D17) -> 0.13 | H17: =(E17-D17) -> 0.13
A18: SCI | B18: RA | C18: 73020 | D18: 0 | E18: 0.18 | F18: (080000) 52/CR550 RAMP J | G18: =(E18-D18) -> 0.18 | H18: =(E18-D18) -> 0.18
A19: SCI | B19: RA | C19: 73024 | D19: 0 | E19: 0.17 | F19: (080100) 52/522 RAMP 4 | G19: =(E19-D19) -> 0.17 | H19: =(E19-D19) -> 0.17
A20: SCI | B20: SR | C20: 522 | D20: 0 | E20: 0.18 | F20: (080100) 52/522 RAMP 1 | G20: =(E20-D20) -> 0.18 | H20: =(E20-D20) -> 0.18
A22: SCI | B22: RA | C22: 73022 | D22: 0 | E22: 0.18 | F22: (080100) 52/522 RAMP 3 | G22: =(E22-D22) -> 0.18 | H22: =(E22-D22) -> 0.18
A23: SCI | B23: RA | C23: 73023 | D23: 0 | E23: 0.18 | F23: (080100) 52/522 RAMP 2 | G23: =(E23-D23) -> 0.18 | H23: =(E23-D23) -> 0.18
A24: SCI | B24: SR | C24: 73 | D24: 0 | E24: 21.06 | F24: ADA CL TO PBWO TR 1568 | G24: =(E24-D24)*2 -> 42.12 | J24: =(E24-D24) -> 21.06 | K24: 38.978
A25: SCI | B25: SR | C25: 73 | D25: 21.74 | E25: 23.04 | F25: PBEO TR 1109 TO 2/4 TRANSITION | G25: =(E25-D25)*2 -> 2.6 | J25: =(E25-D25)+0.98 -> 2.28 | K25: 3.04 | P25: TWLT (22.060-23.040)
A26: SCI | B26: SR | C26: 73 | D26: 23.04 | E26: 24.847 | F26: 2/4 LANE TRANSITION TO RAMPS | G26: 3.614 | H26: =(E26-D26-0.185-0.09)*2 -> 3.064 | I26: =(E26-D26-0.185)*2 -> 3.244 | J26: =((0.036+0.054+0.095)*2)+0.09 -> 0.46 | K26: 0.92 | P26: DIVIDED CL (23.298-23.334) (23.719-23.773)(24.662-24.757) SINGLE CL (24.757-24.847) NO LL (24.662-24.847)
A28: SCI | B28: SR | C28: 73 | D28: 24.847 | E28: 25.501 | F28: (079700) 52/73 RAMP P | G28: =(E28-D28) -> 0.654 | H28: =(E28-D28) -> 0.654
A29: SCI | B29: RA | C29: 73006 | D29: 0 | E29: 0.15 | F29: (079700) 852/73 RAMP S | G29: 0.15 | H29: 0.15
A30: SCI | B30: RA | C30: 73009 | D30: 0 | E30: 0.32 | F30: (079700) 52/73 RAMP N | G30: 0.32 | H30: 0.32
A31: SCI | B31: RA | C31: 73008 | D31: 0 | E31: 0.11 | F31: (079700) 852/73 RAMP T | G31: 0.11 | H31: 0.11
A32: SCI | B32: RA | C32: 73007 | D32: 0.218 | E32: 0.63 | F32: (079700) 52/73 RAMP C | G32: =(E32-D32) -> 0.412 | H32: =(E32-D32) -> 0.412 | I32: 0.123 | P32: LL (0.275-0.398)
A34: SCI | B34: SR | C34: 73 | D34: 25.501 | E34: 25.84 | F34: RAMPS TO PORTSMOUTH W CORP | G34: =(E34-D34)*2 -> 0.678 | J34: =(E34-D34)+0.04 -> 0.379 | K34: 0.758 | P34: DIVIDED CL (25.501-25.541)
A39: SHEET TOTALS | G39: =SUM(G9:G38) -> 95.964 | H39: 16.378 | I39: 18.869 | J39: 41.178 | K39: 69.736 | L39: 0 | M39: 0 | N39: 0
A40: TOTALS CARRIED TO SHEET 16 | G40: =ROUND(G39+H39,2) -> 112.34 | I40: =ROUND(I39,2) -> 18.87 | J40: =ROUND(J39,2) -> 41.18 | L40: =ROUNDUP(L39+M39,0) -> 0 | N40: =N39 -> 0

Sheet SCI(16)
A1: PAVEMENT MARKING SUBSUMMARY - SCIOTO COUNTY
A2: COUNTY | B2: RTE TYPE | C2: ROUTE | D2: SLM | F2: LOCATION DESCRIPTION [CL = COUNTY LINE] [* CORP = CORPORATION LIMIT] [PB*O=PAVEMENT BREAK * OF] *=(EAST/WEST/NORTH/SOUTH) | G2: 642
G3: EDGE LINE, 6", TYPE 1 | I3: LANE LINE, 6", TYPE 1 | J3: CENTER LINE, TYPE 1 | L3: DOTTED LINE, 6", TYPE 1 | N3: DOTTED LINE, 12", TYPE 1 | P3: REMARKS [EL = EDGE LINE] [CL = CENTERLINE] [LL = LANE LINE] [TWLT = TWO WAY LEFT TURN]
G7: WHITE | H7: YELLOW | K7: EQUIV. SOLID MILE | L7: WHITE | M7: YELLOW | N7: WHITE
D8: FROM | E8: TO | G8: MILE | H8: MILE | I8: MILE | J8: MILE | L8: FT | M8: FT | N8: FT
A10: SCI | B10: SR | C10: 104 | D10: 6.37 | E10: 17.42 | F10: SR 73 TO PBSO PIK CL | G10: =(E10-D10)*2 -> 22.1 | J10: =(E10-D10)+0.12+0.1 -> 11.27 | K10: 14.085 | P10: DIVIDED CL (11.960-12.060) (12.236-12.356)
A11: SCI | B11: SR | C11: 125 | D11: 0 | E11: 6.25 | F11: ADA CL TO PBEO TR 99 | G11: =(E11-D11)*2 -> 12.5 | J11: =(E11-D11) -> 6.25 | K11: 11.578
A12: SCI | B12: SR | C12: 139 | D12: 0 | E12: 0.52 | F12: US 52 EB TO NEW BOSTON N. CORP | J12: =(E12-D12)+0.03 -> 0.55 | K12: 1.16 | P12: DIVIDED CL (0.073-0.103), NO EL
A13: SCI | B13: SR | C13: 139 | D13: 1.51 | E13: 18.03 | F13: PORTSMOUTH N CORP TO JAC CL | G13: =(E13-D13)*2 -> 33.04 | J13: =(E13-D13) -> 16.52 | K13: 31.268
A14: SCI | B14: SR | C14: 140 | D14: 0.38 | E14: 16.6 | F14: PORTSMOUTH E CORP TO LAW CL | G14: 32.44 | J14: =(E14-D14)+0.057+0.065 -> 16.342 | K14: 28.468 | P14: DIVIDED CL (0.380-0.437)(0.527-0.592)
A16: SCI | B16: SR | C16: 239 | D16: 0.14 | E16: 1.22 | F16: US 52 EB RAMPS TO SR 73 | G16: 2.16 | J16: =(E16-D16) -> 1.08 | K16: 2.16
A17: SCI | B17: SR | C17: 253 | D17: 0.153 | E17: 0.306 | F17: GREENUP DAM TO US 52 EB RAMPS | G17: 0.306 | J17: =(E17-D17)+0.026+0.057 -> 0.236 | K17: 0.38 | P17: DIVIDED CL (0.153-0.179)(0.226-0.283)
A18: SCI | B18: SR | C18: 253I | D18: 0 | E18: 0.096 | F18: US 52 EB RAMPS TO CR 1 | G18: 0.192 | J18: =(E18-D18) -> 0.096 | K18: 0.192
A19: SCI | B19: SR | C19: 335 | D19: 1.911 | E19: 16 | F19: PORTSMOUTH N CORP TO PIK CL | G19: 28.178 | J19: =(E19-D19)+0.07+0.074 -> 14.233 | K19: 24.677 | L19: 250 | P19: DOTTLED LINE AT SR 823A DIVIDED CL (9.018-9.088)(9.188-9.262)
A20: SCI | B20: SR | C20: 348 | D20: 0 | E20: 6.23 | F20: ADA CL TO SR 73 | G20: 12.46 | J20: =(E20-D20) -> 6.23 | K20: 11.592
A22: SCI | B22: SR | C22: 348 | D22: 6.38 | E22: 12.8 | F22: SR 73 TO PBWO CR 524 | G22: 12.84 | J22: =(E22-D22) -> 6.42 | K22: 12.266
A23: SCI | B23: SR | C23: 371 | D23: 0 | E23: 0.455 | F23: FOREST RD 1 TO SR 73 | G23: 0.91 | J23: =(E23-D23) -> 0.455 | K23: 0.89
A24: SCI | B24: SR | C24: 522 | D24: 0.18 | E24: 8.29 | F24: US 52 EB RAMPS TO LAW CL | G24: 16.22 | J24: =(E24-D24)+0.095 -> 8.205 | K24: 12.258 | P24: DIVIDED CL (1.679-1.774)
A25: SCI | B25: SR | C25: 772 | D25: 4.06 | E25: 5.97 | F25: PIK CL TO PIK CL | G25: =(E25-D25)*2 -> 3.82 | J25: =(E25-D25) -> 1.91 | K25: 2.959 | P25: BREAKS 4 TIMES FOR PIK 772
A26: SCI | B26: SR | C26: 776 | D26: 0 | E26: 2.69 | F26: SR 335 TO PIK CL | G26: =(E26-D26)*2 -> 5.38 | J26: =(E26-D26) -> 2.69 | K26: 3.444
A28: SCI | B28: SR | C28: 852 | D28: 0.19 | E28: 0.94 | F28: OHIO RIVER BRIDGE TO SR 73 | G28: =(E28-D28)*2 -> 1.5 | J28: =(E28-D28)+0.082+0.096+0.109 -> 1.037 | K28: 2.074 | P28: DIVIDED CL (0.436-0.518) (0.596-0.692)(0.730-0.839)
A29: SCI | B29: RA | C29: 73012 | D29: 0 | E29: 0.04 | F29: (079700) 52/852 RAMP U | G29: =(E29-D29) -> 0.04 | H29: =(E29-D29) -> 0.04
A30: SCI | B30: RA | C30: 73011 | D30: 0 | E30: 0.2 | F30: (079700) 52/852 RAMP W | G30: =(E30-D30) -> 0.2 | H30: =(E30-D30) -> 0.2
A40: TOTALS FROM SHEET 15 | G40: ='SCI(15)'!G39 -> 95.964 | H40: ='SCI(15)'!H39 -> 16.378 | I40: ='SCI(15)'!I39 -> 18.869 | J40: ='SCI(15)'!J39 -> 41.178 | L40: ='SCI(15)'!L39 -> 0 | M40: ='SCI(15)'!M39 -> 0 | N40: ='SCI(15)'!N39 -> 0
A41: SHEET TOTALS | G41: =SUM(G9:G39) -> 184.286 | H41: 0.24 | I41: 0 | J41: 93.524 | K41: 159.451 | L41: 250 | M41: 0 | N41: 0
A42: TOTALS CARRIED TO GENERAL SUMMARY | G42: =ROUND(SUM(G40:H41),2) -> 296.87 | I42: =ROUND(SUM(I40:I41),2) -> 18.87 | J42: =ROUND(SUM(J40:J41),2) -> 134.7 | L42: =SUM(L40:M41) -> 250 | N42: =SUM(N40:N41) -> 0
